[Event "Titled Tuesday Blitz February 01 B 2022"]
[White "Goryachkina, Aleksandra"]
[Black "Vusatiuk, Vladimir"]
[WhiteFideId "4147103"]
[BlackFideId "14118610"]
[WhiteElo "2426"]
[BlackElo "2157"]
[Result "0-1"]
[Round "10"]
[TimeControl "180+1"]
[Date "2022.02.01"]
[WhiteClock "0:00:07"]
[BlackClock "0:00:23"]

1. e4 {[%clk 0:03:00]}  Nc6 {[%clk 0:02:59]} 2. Nc3 {[%clk 0:02:56]}  e6 {[%clk 0:02:53]} 3. Nf3 {[%clk 0:02:54]}  d5 {[%clk 0:02:52]} 4. exd5 {[%clk 0:02:49]}  exd5 {[%clk 0:02:53]} 5. d4 {[%clk 0:02:49]}  Nf6 {[%clk 0:02:40]} 6. Bg5 {[%clk 0:02:36]}  Be7 {[%clk 0:02:38]} 7. Bd3 {[%clk 0:02:25]}  O-O {[%clk 0:02:37]} 8. h3 {[%clk 0:02:22]}  h6 {[%clk 0:02:33]} 9. Be3 {[%clk 0:02:18]}  Nb4 {[%clk 0:02:17]} 10. Ne5 {[%clk 0:02:16]}  c5 {[%clk 0:02:02]} 11. a3 {[%clk 0:02:07]}  Nxd3+ {[%clk 0:02:00]} 12. Qxd3 {[%clk 0:02:06]}  c4 {[%clk 0:01:51]} 13. Qd2 {[%clk 0:02:06]}  Bf5 {[%clk 0:01:45]} 14. g4 {[%clk 0:02:04]}  Ne4 {[%clk 0:01:43]} 15. Nxe4 {[%clk 0:02:03]}  Bxe4 {[%clk 0:01:42]} 16. f3 {[%clk 0:02:02]}  Bh4+ {[%clk 0:01:42]} 17. Kd1 {[%clk 0:01:26]}  Bh7 {[%clk 0:01:39]} 18. f4 {[%clk 0:01:19]}  Be4 {[%clk 0:01:35]} 19. Rf1 {[%clk 0:01:17]}  c3 {[%clk 0:01:18]} 20. bxc3 {[%clk 0:01:14]}  Rc8 {[%clk 0:01:14]} 21. f5 {[%clk 0:00:45]}  Qa5 {[%clk 0:00:57]} 22. c4 {[%clk 0:00:36]}  Qa6 {[%clk 0:00:55]} 23. f6 {[%clk 0:00:26]}  Bxf6 {[%clk 0:00:50]} 24. Nd7 {[%clk 0:00:20]}  Rxc4 {[%clk 0:00:27]} 25. Rxf6 {[%clk 0:00:12]}  gxf6 {[%clk 0:00:28]} 26. c3 {[%clk 0:00:07]}  Qa4+ {[%clk 0:00:23]} 0-1


[Site "https://www.chess.com"]

[Event "Titled Tuesday Blitz February 01 B 2022"]
[White "Holt, Conrad"]
[Black "Hakobyan, Aram"]
[WhiteFideId "2034387"]
[BlackFideId "13306677"]
[WhiteElo "2586"]
[BlackElo "2557"]
[Result "0-1"]
[Round "10"]
[TimeControl "180+1"]
[Date "2022.02.01"]
[WhiteClock "0:00:04"]
[BlackClock "0:00:03"]

1. d4 {[%clk 0:03:00]}  Nf6 {[%clk 0:03:00]} 2. c4 {[%clk 0:03:00]}  e6 {[%clk 0:03:01]} 3. Nc3 {[%clk 0:03:01]}  Bb4 {[%clk 0:03:01]} 4. Qc2 {[%clk 0:03:01]}  O-O {[%clk 0:03:01]} 5. e4 {[%clk 0:03:01]}  d5 {[%clk 0:03:01]} 6. e5 {[%clk 0:03:01]}  Ne4 {[%clk 0:03:02]} 7. Bd3 {[%clk 0:03:01]}  c5 {[%clk 0:03:02]} 8. Nf3 {[%clk 0:03:02]}  cxd4 {[%clk 0:03:02]} 9. Nxd4 {[%clk 0:03:03]}  Nd7 {[%clk 0:03:01]} 10. Bf4 {[%clk 0:03:03]}  Ndc5 {[%clk 0:02:57]} 11. O-O {[%clk 0:03:03]}  Bxc3 {[%clk 0:02:54]} 12. bxc3 {[%clk 0:03:02]}  b6 {[%clk 0:02:53]} 13. Be2 {[%clk 0:02:56]}  h6 {[%clk 0:02:38]} 14. f3 {[%clk 0:02:36]}  Ng5 {[%clk 0:02:38]} 15. Rad1 {[%clk 0:02:33]}  Bb7 {[%clk 0:02:31]} 16. Nb5 {[%clk 0:02:26]}  Qe7 {[%clk 0:02:18]} 17. Nd6 {[%clk 0:02:19]}  Bc6 {[%clk 0:02:16]} 18. Rd4 {[%clk 0:02:19]}  Rfd8 {[%clk 0:02:15]} 19. Qd2 {[%clk 0:02:12]}  Rd7 {[%clk 0:01:58]} 20. cxd5 {[%clk 0:02:06]}  Bxd5 {[%clk 0:01:50]} 21. Bb5 {[%clk 0:02:04]}  Rc7 {[%clk 0:01:47]} 22. h4 {[%clk 0:01:56]}  Nh7 {[%clk 0:01:47]} 23. Be3 {[%clk 0:00:59]}  Kh8 {[%clk 0:01:43]} 24. Re1 {[%clk 0:00:55]}  a6 {[%clk 0:01:25]} 25. Bf1 {[%clk 0:00:55]}  b5 {[%clk 0:01:25]} 26. c4 {[%clk 0:00:51]}  bxc4 {[%clk 0:01:26]} 27. Bxc4 {[%clk 0:00:51]}  Nd7 {[%clk 0:01:04]} 28. Bxd5 {[%clk 0:00:48]}  exd5 {[%clk 0:01:04]} 29. Rxd5 {[%clk 0:00:46]}  Nhf8 {[%clk 0:00:54]} 30. Bxh6 {[%clk 0:00:41]}  gxh6 {[%clk 0:00:38]} 31. Qxh6+ {[%clk 0:00:34]}  Nh7 {[%clk 0:00:38]} 32. e6 {[%clk 0:00:20]}  fxe6 {[%clk 0:00:39]} 33. Rxe6 {[%clk 0:00:20]}  Qg7 {[%clk 0:00:28]} 34. Qf4 {[%clk 0:00:18]}  Ndf6 {[%clk 0:00:24]} 35. Rg5 {[%clk 0:00:11]}  Nxg5 {[%clk 0:00:21]} 36. hxg5 {[%clk 0:00:12]}  Nh7 {[%clk 0:00:16]} 37. Nf5 {[%clk 0:00:09]}  Qa1+ {[%clk 0:00:11]} 38. Kh2 {[%clk 0:00:08]}  Rc1 {[%clk 0:00:11]} 39. g6 {[%clk 0:00:08]}  Rg8 {[%clk 0:00:11]} 40. g7+ {[%clk 0:00:07]}  Rxg7 {[%clk 0:00:12]} 41. Nxg7 {[%clk 0:00:06]}  Rh1+ {[%clk 0:00:11]} 42. Kg3 {[%clk 0:00:06]}  Qxg7+ {[%clk 0:00:12]} 43. Kf2 {[%clk 0:00:07]}  Qb2+ {[%clk 0:00:12]} 44. Re2 {[%clk 0:00:07]}  Qb6+ {[%clk 0:00:12]} 45. Kg3 {[%clk 0:00:06]}  Qg6+ {[%clk 0:00:05]} 46. Kf2 {[%clk 0:00:06]}  Qb6+ {[%clk 0:00:05]} 47. Kg3 {[%clk 0:00:06]}  Nf6 {[%clk 0:00:02]} 48. Qg5 {[%clk 0:00:04]}  Nh5+ {[%clk 0:00:02]} 49. Kg4 {[%clk 0:00:04]}  Nf6+ {[%clk 0:00:02]} 50. Kg3 {[%clk 0:00:04]}  Nh5+ {[%clk 0:00:01]} 51. Kg4 {[%clk 0:00:05]}  Qd4+ {[%clk 0:00:02]} 52. Re4 {[%clk 0:00:04]}  Qd7+ {[%clk 0:00:03]} 0-1


[Site "https://www.chess.com"]

[Event "Titled Tuesday Blitz February 01 B 2022"]
[White "Karttunen, Mika"]
[Black "LikeWater"]
[WhiteFideId "502081"]
[WhiteElo "2343"]
[BlackElo "2614"]
[Result "0-1"]
[Round "10"]
[TimeControl "180+1"]
[Date "2022.02.01"]
[WhiteClock "0:00:06"]
[BlackClock "0:00:13"]

1. e4 {[%clk 0:03:00]}  d6 {[%clk 0:03:00]} 2. d4 {[%clk 0:03:00]}  c6 {[%clk 0:03:01]} 3. c4 {[%clk 0:02:53]}  Nd7 {[%clk 0:03:02]} 4. Nc3 {[%clk 0:02:53]}  e5 {[%clk 0:03:03]} 5. d5 {[%clk 0:02:52]}  Ngf6 {[%clk 0:03:04]} 6. f3 {[%clk 0:02:51]}  Be7 {[%clk 0:03:04]} 7. Be3 {[%clk 0:02:51]}  O-O {[%clk 0:03:01]} 8. Qd2 {[%clk 0:02:51]}  cxd5 {[%clk 0:03:00]} 9. cxd5 {[%clk 0:02:51]}  Nh5 {[%clk 0:02:58]} 10. Nge2 {[%clk 0:02:47]}  Nb6 {[%clk 0:02:49]} 11. b3 {[%clk 0:02:38]}  g6 {[%clk 0:02:36]} 12. g4 {[%clk 0:02:35]}  Bh4+ {[%clk 0:02:34]} 13. Kd1 {[%clk 0:02:32]}  Ng7 {[%clk 0:02:32]} 14. Rg1 {[%clk 0:02:26]}  f5 {[%clk 0:02:26]} 15. gxf5 {[%clk 0:02:23]}  gxf5 {[%clk 0:02:27]} 16. Bh6 {[%clk 0:02:22]}  Bf6 {[%clk 0:02:28]} 17. Ng3 {[%clk 0:02:16]}  Kh8 {[%clk 0:02:14]} 18. Bxg7+ {[%clk 0:01:25]}  Bxg7 {[%clk 0:02:15]} 19. Nh5 {[%clk 0:01:25]}  Rf7 {[%clk 0:02:14]} 20. Nxg7 {[%clk 0:01:02]}  Rxg7 {[%clk 0:02:15]} 21. Rxg7 {[%clk 0:00:59]}  Kxg7 {[%clk 0:02:16]} 22. Kc2 {[%clk 0:00:51]}  Qh4 {[%clk 0:02:00]} 23. Bd3 {[%clk 0:00:47]}  f4 {[%clk 0:01:53]} 24. Rg1+ {[%clk 0:00:46]}  Kf6 {[%clk 0:01:36]} 25. Qg2 {[%clk 0:00:45]}  Qh6 {[%clk 0:01:35]} 26. h4 {[%clk 0:00:26]}  Bd7 {[%clk 0:01:30]} 27. a4 {[%clk 0:00:26]}  Rf8 {[%clk 0:01:26]} 28. Qf2 {[%clk 0:00:23]}  Rf7 {[%clk 0:01:06]} 29. a5 {[%clk 0:00:21]}  Nc8 {[%clk 0:01:06]} 30. Bb5 {[%clk 0:00:22]}  Ke7 {[%clk 0:01:01]} 31. Bxd7 {[%clk 0:00:21]}  Kxd7 {[%clk 0:01:01]} 32. Kb2 {[%clk 0:00:19]}  Rg7 {[%clk 0:01:01]} 33. Rc1 {[%clk 0:00:19]}  a6 {[%clk 0:00:59]} 34. Na4 {[%clk 0:00:18]}  Qg6 {[%clk 0:00:54]} 35. Rc2 {[%clk 0:00:17]}  Qg1 {[%clk 0:00:53]} 36. Qe2 {[%clk 0:00:14]}  Qd4+ {[%clk 0:00:52]} 37. Ka2 {[%clk 0:00:11]}  Rg1 {[%clk 0:00:51]} 38. Nb2 {[%clk 0:00:11]}  Qb4 {[%clk 0:00:38]} 39. Rc4 {[%clk 0:00:09]}  Qxa5+ {[%clk 0:00:19]} 40. Na4 {[%clk 0:00:08]}  Qe1 {[%clk 0:00:15]} 41. Qb2 {[%clk 0:00:08]}  b5 {[%clk 0:00:13]} 42. Rxc8 {[%clk 0:00:06]}  Kxc8 {[%clk 0:00:12]} 43. Qc2+ {[%clk 0:00:06]}  Kd8 {[%clk 0:00:13]} 0-1


[Site "https://www.chess.com"]

[Event "Titled Tuesday Blitz February 01 B 2022"]
[White "Martinez Alcantara, Jose Eduardo"]
[Black "Jobava, Baadur"]
[WhiteFideId "3805662"]
[BlackFideId "13601520"]
[WhiteElo "2690"]
[BlackElo "2617"]
[Result "1-0"]
[Round "10"]
[TimeControl "180+1"]
[Date "2022.02.01"]
[WhiteClock "0:00:12"]
[BlackClock "0:00:02"]

1. e4 {[%clk 0:03:00]}  c6 {[%clk 0:02:56]} 2. d4 {[%clk 0:03:00]}  d5 {[%clk 0:02:57]} 3. e5 {[%clk 0:03:01]}  Bf5 {[%clk 0:02:57]} 4. h4 {[%clk 0:03:02]}  Qc7 {[%clk 0:02:57]} 5. Nc3 {[%clk 0:02:59]}  h5 {[%clk 0:02:54]} 6. Bd3 {[%clk 0:02:57]}  Bxd3 {[%clk 0:02:54]} 7. Qxd3 {[%clk 0:02:58]}  e6 {[%clk 0:02:55]} 8. Nf3 {[%clk 0:02:56]}  Nd7 {[%clk 0:02:51]} 9. Bg5 {[%clk 0:02:55]}  Ne7 {[%clk 0:02:49]} 10. O-O {[%clk 0:02:46]}  Nf5 {[%clk 0:02:50]} 11. Ne2 {[%clk 0:02:46]}  c5 {[%clk 0:02:49]} 12. c3 {[%clk 0:02:44]}  c4 {[%clk 0:02:46]} 13. Qd2 {[%clk 0:02:37]}  Be7 {[%clk 0:02:43]} 14. Ng3 {[%clk 0:02:36]}  g6 {[%clk 0:02:36]} 15. b3 {[%clk 0:02:34]}  Rc8 {[%clk 0:02:35]} 16. b4 {[%clk 0:02:28]}  Bxg5 {[%clk 0:02:31]} 17. Qxg5 {[%clk 0:02:24]}  Qd8 {[%clk 0:02:28]} 18. Qf4 {[%clk 0:02:20]}  Nh6 {[%clk 0:02:18]} 19. Ng5 {[%clk 0:02:18]}  Qe7 {[%clk 0:02:17]} 20. a4 {[%clk 0:02:16]}  Kd8 {[%clk 0:02:16]} 21. f3 {[%clk 0:02:07]}  Kc7 {[%clk 0:02:15]} 22. a5 {[%clk 0:02:00]}  Kb8 {[%clk 0:02:15]} 23. b5 {[%clk 0:01:59]}  Rcf8 {[%clk 0:02:07]} 24. a6 {[%clk 0:01:58]}  b6 {[%clk 0:02:07]} 25. Rfe1 {[%clk 0:01:55]}  Kc8 {[%clk 0:02:00]} 26. Nf1 {[%clk 0:01:52]}  Rd8 {[%clk 0:01:51]} 27. Ne3 {[%clk 0:01:52]}  Nf8 {[%clk 0:01:49]} 28. Nc2 {[%clk 0:01:49]}  Nf5 {[%clk 0:01:44]} 29. Nb4 {[%clk 0:01:44]}  Rd7 {[%clk 0:01:32]} 30. Nc6 {[%clk 0:01:42]}  Qe8 {[%clk 0:01:32]} 31. Kf2 {[%clk 0:01:39]}  Rc7 {[%clk 0:01:32]} 32. Rh1 {[%clk 0:01:35]}  Nh7 {[%clk 0:01:29]} 33. g4 {[%clk 0:01:26]}  Ng7 {[%clk 0:01:22]} 34. Ke2 {[%clk 0:01:05]}  Nxg5 {[%clk 0:01:21]} 35. Qxg5 {[%clk 0:01:04]}  Rh7 {[%clk 0:01:16]} 36. Kd2 {[%clk 0:01:02]}  Kd7 {[%clk 0:01:12]} 37. Rhg1 {[%clk 0:00:57]}  Rxc6 {[%clk 0:01:11]} 38. bxc6+ {[%clk 0:00:58]}  Kxc6 {[%clk 0:01:12]} 39. Rh1 {[%clk 0:00:57]}  Kd7 {[%clk 0:01:11]} 40. Ke2 {[%clk 0:00:56]}  Qe7 {[%clk 0:01:12]} 41. Qf4 {[%clk 0:00:54]}  Ne8 {[%clk 0:01:10]} 42. Kf2 {[%clk 0:00:51]}  Nc7 {[%clk 0:01:10]} 43. Kg3 {[%clk 0:00:52]}  Nb5 {[%clk 0:01:08]} 44. Qd2 {[%clk 0:00:48]}  Kc6 {[%clk 0:01:05]} 45. Qc2 {[%clk 0:00:40]}  Nc7 {[%clk 0:01:02]} 46. Qa4+ {[%clk 0:00:40]}  b5 {[%clk 0:01:02]} 47. Qc2 {[%clk 0:00:36]}  Kd7 {[%clk 0:00:52]} 48. Qd2 {[%clk 0:00:35]}  Kc6 {[%clk 0:00:46]} 49. Qc2 {[%clk 0:00:35]}  Rh8 {[%clk 0:00:45]} 50. Rh2 {[%clk 0:00:35]}  Kb6 {[%clk 0:00:41]} 51. Qa2 {[%clk 0:00:33]}  Rg8 {[%clk 0:00:31]} 52. Qd2 {[%clk 0:00:29]}  Kc6 {[%clk 0:00:27]} 53. Ra2 {[%clk 0:00:28]}  Rb8 {[%clk 0:00:23]} 54. gxh5 {[%clk 0:00:23]}  gxh5 {[%clk 0:00:23]} 55. Kh3 {[%clk 0:00:24]}  b4 {[%clk 0:00:21]} 56. cxb4 {[%clk 0:00:24]}  Qxb4 {[%clk 0:00:20]} 57. Qf4 {[%clk 0:00:24]}  Qe7 {[%clk 0:00:17]} 58. Rhg2 {[%clk 0:00:24]}  Rb3 {[%clk 0:00:15]} 59. Rg7 {[%clk 0:00:21]}  Qd8 {[%clk 0:00:03]} 60. Rxf7 {[%clk 0:00:21]}  c3 {[%clk 0:00:03]} 61. Rc2 {[%clk 0:00:18]}  Nb5 {[%clk 0:00:03]} 62. Rf6 {[%clk 0:00:17]}  Qe7 {[%clk 0:00:03]} 63. Rg2 {[%clk 0:00:17]}  Rb1 {[%clk 0:00:03]} 64. Qf5 {[%clk 0:00:12]}  Nc7 {[%clk 0:00:02]} 65. Qxb1 {[%clk 0:00:12]} 1-0


[Site "https://www.chess.com"]

[Event "Titled Tuesday Blitz February 01 B 2022"]
[White "Mladenovic, Stefan"]
[Black "Quintiliano Pinto, Renato R."]
[WhiteFideId "942227"]
[BlackFideId "2117568"]
[WhiteElo "2355"]
[BlackElo "2439"]
[Result "1-0"]
[Round "10"]
[TimeControl "180+1"]
[Date "2022.02.01"]
[WhiteClock "0:00:02"]
[BlackClock "0:00:17"]

1. d4 {[%clk 0:03:00]}  d5 {[%clk 0:02:59]} 2. c4 {[%clk 0:02:59]}  e6 {[%clk 0:03:00]} 3. Nc3 {[%clk 0:02:57]}  Nf6 {[%clk 0:03:00]} 4. Bg5 {[%clk 0:02:56]}  Be7 {[%clk 0:02:59]} 5. e3 {[%clk 0:02:56]}  O-O {[%clk 0:02:58]} 6. Nf3 {[%clk 0:02:55]}  h6 {[%clk 0:02:55]} 7. Bxf6 {[%clk 0:02:52]}  Bxf6 {[%clk 0:02:56]} 8. cxd5 {[%clk 0:02:52]}  exd5 {[%clk 0:02:56]} 9. Bd3 {[%clk 0:02:52]}  Re8 {[%clk 0:02:53]} 10. O-O {[%clk 0:02:51]}  c6 {[%clk 0:02:52]} 11. Qc2 {[%clk 0:02:48]}  Nd7 {[%clk 0:02:51]} 12. Rab1 {[%clk 0:02:48]}  Be7 {[%clk 0:02:45]} 13. b4 {[%clk 0:02:47]}  Nf6 {[%clk 0:02:42]} 14. a4 {[%clk 0:02:45]}  a6 {[%clk 0:02:37]} 15. b5 {[%clk 0:02:44]}  axb5 {[%clk 0:02:37]} 16. axb5 {[%clk 0:02:45]}  c5 {[%clk 0:02:38]} 17. dxc5 {[%clk 0:02:44]}  Bxc5 {[%clk 0:02:39]} 18. Ne2 {[%clk 0:02:44]}  Bd6 {[%clk 0:02:38]} 19. Ned4 {[%clk 0:02:43]}  Bd7 {[%clk 0:02:38]} 20. Nf5 {[%clk 0:02:41]}  Bxf5 {[%clk 0:02:28]} 21. Bxf5 {[%clk 0:02:42]}  Qe7 {[%clk 0:02:28]} 22. Rfd1 {[%clk 0:02:40]}  g6 {[%clk 0:02:28]} 23. Bd3 {[%clk 0:02:38]}  Kg7 {[%clk 0:02:28]} 24. b6 {[%clk 0:02:36]}  Rac8 {[%clk 0:02:23]} 25. Qb3 {[%clk 0:02:36]}  Rc5 {[%clk 0:02:10]} 26. h3 {[%clk 0:02:34]}  Rec8 {[%clk 0:02:10]} 27. Bf1 {[%clk 0:02:33]}  Rc3 {[%clk 0:01:56]} 28. Qb2 {[%clk 0:02:23]}  Rc2 {[%clk 0:01:55]} 29. Qa1 {[%clk 0:02:22]}  Kg8 {[%clk 0:01:41]} 30. Bd3 {[%clk 0:02:21]}  R2c3 {[%clk 0:01:41]} 31. Rbc1 {[%clk 0:02:20]}  Rxc1 {[%clk 0:01:33]} 32. Rxc1 {[%clk 0:02:21]}  Rxc1+ {[%clk 0:01:33]} 33. Qxc1 {[%clk 0:02:20]}  Qd8 {[%clk 0:01:34]} 34. Qb2 {[%clk 0:02:18]}  Bc5 {[%clk 0:01:32]} 35. Ne5 {[%clk 0:01:51]}  Qxb6 {[%clk 0:01:29]} 36. Qa2 {[%clk 0:01:51]}  Bxe3 {[%clk 0:01:23]} 37. Ng4 {[%clk 0:00:55]}  Bd4 {[%clk 0:01:07]} 38. Nxh6+ {[%clk 0:00:47]}  Kg7 {[%clk 0:01:07]} 39. Ng4 {[%clk 0:00:46]}  Nxg4 {[%clk 0:01:07]} 40. hxg4 {[%clk 0:00:47]}  Qe6 {[%clk 0:01:05]} 41. Be2 {[%clk 0:00:36]}  b6 {[%clk 0:00:58]} 42. Kf1 {[%clk 0:00:31]}  Qe5 {[%clk 0:00:57]} 43. Bf3 {[%clk 0:00:30]}  Qf4 {[%clk 0:00:44]} 44. Bxd5 {[%clk 0:00:23]}  Qxg4 {[%clk 0:00:41]} 45. Bf3 {[%clk 0:00:20]}  Qf5 {[%clk 0:00:38]} 46. Qb3 {[%clk 0:00:15]}  Qc5 {[%clk 0:00:33]} 47. Qa2 {[%clk 0:00:06]}  b5 {[%clk 0:00:33]} 48. g3 {[%clk 0:00:05]}  b4 {[%clk 0:00:33]} 49. Kg2 {[%clk 0:00:05]}  Qe7 {[%clk 0:00:23]} 50. Bd5 {[%clk 0:00:06]}  Qf6 {[%clk 0:00:19]} 51. Bc4 {[%clk 0:00:05]}  Bc5 {[%clk 0:00:19]} 52. Qe2 {[%clk 0:00:05]}  Bd4 {[%clk 0:00:16]} 53. Bb3 {[%clk 0:00:05]}  Bc3 {[%clk 0:00:16]} 54. Bc4 {[%clk 0:00:05]}  Be5 {[%clk 0:00:16]} 55. Bb3 {[%clk 0:00:05]}  Qc6+ {[%clk 0:00:16]} 56. Kg1 {[%clk 0:00:03]}  Qc1+ {[%clk 0:00:16]} 57. Kg2 {[%clk 0:00:03]}  Qc7 {[%clk 0:00:17]} 58. Kg1 {[%clk 0:00:03]}  Bf6 {[%clk 0:00:17]} 59. Kg2 {[%clk 0:00:03]}  Bd4 {[%clk 0:00:17]} 60. Qf3 {[%clk 0:00:03]}  Bc5 {[%clk 0:00:16]} 61. Qd5 {[%clk 0:00:03]}  Qe7 {[%clk 0:00:16]} 62. Qf3 {[%clk 0:00:03]}  Bd4 {[%clk 0:00:17]} 63. Qd5 {[%clk 0:00:03]}  Qf6 {[%clk 0:00:16]} 64. Qf3 {[%clk 0:00:02]}  Qb6 {[%clk 0:00:17]} 65. g4 {[%clk 0:00:01]}  Bf6 {[%clk 0:00:17]} 66. g5 {[%clk 0:00:01]}  Bxg5 {[%clk 0:00:17]} 67. Qxf7+ {[%clk 0:00:02]}  Kh6 {[%clk 0:00:17]} 68. Qf8+ {[%clk 0:00:03]}  Kh5 {[%clk 0:00:17]} 69. Bd1+ {[%clk 0:00:02]} 1-0


[Site "https://www.chess.com"]

[Event "Titled Tuesday Blitz February 01 B 2022"]
[White "Musovic, Armin"]
[Black "Vakhlamov, Igor L."]
[WhiteFideId "939935"]
[BlackFideId "24126748"]
[WhiteElo "2250"]
[BlackElo "2401"]
[Result "0-1"]
[Round "10"]
[TimeControl "180+1"]
[Date "2022.02.01"]
[WhiteClock "0:01:04"]
[BlackClock "0:01:18"]

1. a3 {[%clk 0:03:00]}  g6 {[%clk 0:03:00]} 2. Nc3 {[%clk 0:03:01]}  Bg7 {[%clk 0:02:59]} 3. e4 {[%clk 0:03:02]}  c6 {[%clk 0:02:57]} 4. Bc4 {[%clk 0:03:02]}  e6 {[%clk 0:02:52]} 5. Ba2 {[%clk 0:03:01]}  d5 {[%clk 0:02:52]} 6. Nge2 {[%clk 0:03:00]}  Ne7 {[%clk 0:02:50]} 7. O-O {[%clk 0:03:00]}  O-O {[%clk 0:02:50]} 8. d3 {[%clk 0:03:00]}  b6 {[%clk 0:02:47]} 9. Bg5 {[%clk 0:02:58]}  Nd7 {[%clk 0:02:44]} 10. f4 {[%clk 0:02:57]}  Qe8 {[%clk 0:02:24]} 11. Kh1 {[%clk 0:02:45]}  Bb7 {[%clk 0:02:24]} 12. Qe1 {[%clk 0:02:43]}  Kh8 {[%clk 0:02:17]} 13. Qh4 {[%clk 0:02:39]}  f6 {[%clk 0:02:17]} 14. Bh6 {[%clk 0:02:39]}  Qf7 {[%clk 0:02:13]} 15. Rae1 {[%clk 0:02:32]}  Rae8 {[%clk 0:02:12]} 16. Ng3 {[%clk 0:02:32]}  Bxh6 {[%clk 0:01:48]} 17. Qxh6 {[%clk 0:02:32]}  Qg7 {[%clk 0:01:48]} 18. Qh3 {[%clk 0:02:15]}  f5 {[%clk 0:01:48]} 19. e5 {[%clk 0:02:08]}  g5 {[%clk 0:01:41]} 20. Nh5 {[%clk 0:02:02]}  Qg6 {[%clk 0:01:41]} 21. Rf3 {[%clk 0:01:48]}  g4 {[%clk 0:01:39]} 22. Qh4 {[%clk 0:01:37]}  gxf3 {[%clk 0:01:39]} 23. gxf3 {[%clk 0:01:38]}  Rg8 {[%clk 0:01:39]} 24. Ng3 {[%clk 0:01:34]}  Qf7 {[%clk 0:01:27]} 25. d4 {[%clk 0:01:32]}  Rg6 {[%clk 0:01:26]} 26. Nce2 {[%clk 0:01:29]}  Reg8 {[%clk 0:01:26]} 27. c3 {[%clk 0:01:28]}  Qg7 {[%clk 0:01:25]} 28. Qh3 {[%clk 0:01:15]}  Ba6 {[%clk 0:01:21]} 29. Kg2 {[%clk 0:01:03]}  Bxe2 {[%clk 0:01:18]} 30. Rxe2 {[%clk 0:01:04]}  Rh6 {[%clk 0:01:18]} 0-1


[Site "https://www.chess.com"]

[Event "Titled Tuesday Blitz February 01 B 2022"]
[White "Niemann, Hans Moke"]
[Black "Pranav, V"]
[WhiteFideId "2093596"]
[BlackFideId "25060783"]
[WhiteElo "2636"]
[BlackElo "2349"]
[Result "1-0"]
[Round "10"]
[TimeControl "180+1"]
[Date "2022.02.01"]
[WhiteClock "0:02:20"]
[BlackClock "0:00:53"]

1. d4 {[%clk 0:02:59]}  Nf6 {[%clk 0:02:59]} 2. Nc3 {[%clk 0:02:58]}  d5 {[%clk 0:03:00]} 3. Bf4 {[%clk 0:02:57]}  c5 {[%clk 0:03:00]} 4. e4 {[%clk 0:02:57]}  dxe4 {[%clk 0:02:49]} 5. dxc5 {[%clk 0:02:56]}  Qa5 {[%clk 0:02:46]} 6. Qd2 {[%clk 0:02:56]}  Nc6 {[%clk 0:02:03]} 7. Nb5 {[%clk 0:02:54]}  e5 {[%clk 0:01:37]} 8. Qxa5 {[%clk 0:02:51]}  Nxa5 {[%clk 0:01:37]} 9. Bxe5 {[%clk 0:02:38]}  Kd7 {[%clk 0:01:17]} 10. O-O-O+ {[%clk 0:02:37]}  Ke6 {[%clk 0:01:15]} 11. Bc3 {[%clk 0:02:33]}  Rb8 {[%clk 0:01:02]} 12. Bxa5 {[%clk 0:02:26]}  Bxc5 {[%clk 0:01:02]} 13. Nd4+ {[%clk 0:02:26]}  Ke7 {[%clk 0:01:01]} 14. h3 {[%clk 0:02:25]}  Bd7 {[%clk 0:00:58]} 15. Nge2 {[%clk 0:02:23]}  e3 {[%clk 0:00:58]} 16. fxe3 {[%clk 0:02:20]}  Ne4 {[%clk 0:00:58]} 17. Be1 {[%clk 0:02:21]}  Rbc8 {[%clk 0:00:54]} 18. Nc3 {[%clk 0:02:21]}  Nf6 {[%clk 0:00:53]} 19. Bh4 {[%clk 0:02:20]} 1-0


[Site "https://www.chess.com"]

[Event "Titled Tuesday Blitz February 01 B 2022"]
[White "Salinas Herrera, Pablo"]
[Black "Timofeev, Artyom"]
[WhiteFideId "3407128"]
[BlackFideId "4140419"]
[WhiteElo "2541"]
[BlackElo "2583"]
[Result "1-0"]
[Round "10"]
[TimeControl "180+1"]
[Date "2022.02.01"]
[WhiteClock "0:00:12"]
[BlackClock "0:00:01"]

1. d4 {[%clk 0:03:00]}  d5 {[%clk 0:02:59]} 2. Bf4 {[%clk 0:03:01]}  Nf6 {[%clk 0:02:59]} 3. e3 {[%clk 0:03:01]}  e6 {[%clk 0:02:58]} 4. Nf3 {[%clk 0:03:00]}  Bd6 {[%clk 0:02:58]} 5. Nbd2 {[%clk 0:03:01]}  O-O {[%clk 0:02:56]} 6. c3 {[%clk 0:03:00]}  b6 {[%clk 0:02:56]} 7. Ne5 {[%clk 0:02:57]}  Bb7 {[%clk 0:02:54]} 8. Bd3 {[%clk 0:02:57]}  Ne4 {[%clk 0:02:52]} 9. O-O {[%clk 0:02:51]}  f6 {[%clk 0:02:51]} 10. Nef3 {[%clk 0:02:51]}  Nd7 {[%clk 0:02:45]} 11. Qc2 {[%clk 0:02:48]}  Nxd2 {[%clk 0:02:29]} 12. Bxh7+ {[%clk 0:01:43]}  Kh8 {[%clk 0:02:29]} 13. Nxd2 {[%clk 0:01:44]}  Bxf4 {[%clk 0:02:27]} 14. exf4 {[%clk 0:01:44]}  f5 {[%clk 0:02:27]} 15. Bg6 {[%clk 0:01:43]}  Qh4 {[%clk 0:02:22]} 16. Qd1 {[%clk 0:01:24]}  Qxf4 {[%clk 0:02:09]} 17. Re1 {[%clk 0:01:09]}  Rf6 {[%clk 0:02:07]} 18. Qh5+ {[%clk 0:00:56]}  Qh6 {[%clk 0:02:07]} 19. Qxh6+ {[%clk 0:00:57]}  gxh6 {[%clk 0:02:07]} 20. Bh5 {[%clk 0:00:58]}  c5 {[%clk 0:01:56]} 21. Rac1 {[%clk 0:00:49]}  Rc8 {[%clk 0:01:48]} 22. Nf3 {[%clk 0:00:46]}  Kg7 {[%clk 0:01:46]} 23. a3 {[%clk 0:00:36]}  Ba6 {[%clk 0:01:45]} 24. Rcd1 {[%clk 0:00:35]}  Kf8 {[%clk 0:01:15]} 25. Ne5 {[%clk 0:00:31]}  Ke7 {[%clk 0:01:11]} 26. Ng6+ {[%clk 0:00:30]}  Kd6 {[%clk 0:01:09]} 27. Nf4 {[%clk 0:00:24]}  cxd4 {[%clk 0:01:02]} 28. Rxd4 {[%clk 0:00:24]}  Nc5 {[%clk 0:00:57]} 29. Bf3 {[%clk 0:00:20]}  Bc4 {[%clk 0:00:54]} 30. h4 {[%clk 0:00:19]}  a5 {[%clk 0:00:25]} 31. Rdd1 {[%clk 0:00:18]}  a4 {[%clk 0:00:25]} 32. g3 {[%clk 0:00:19]}  b5 {[%clk 0:00:25]} 33. Kg2 {[%clk 0:00:18]}  Kc6 {[%clk 0:00:20]} 34. h5 {[%clk 0:00:18]}  Rg8 {[%clk 0:00:18]} 35. Rd4 {[%clk 0:00:16]}  Kd6 {[%clk 0:00:18]} 36. Rdd1 {[%clk 0:00:15]}  Rg5 {[%clk 0:00:16]} 37. Re3 {[%clk 0:00:12]}  Rg8 {[%clk 0:00:15]} 38. Rde1 {[%clk 0:00:13]}  Re8 {[%clk 0:00:12]} 39. Rd1 {[%clk 0:00:12]}  Rd8 {[%clk 0:00:12]} 40. Kh3 {[%clk 0:00:13]}  Re8 {[%clk 0:00:11]} 41. Kh4 {[%clk 0:00:13]}  Re7 {[%clk 0:00:11]} 42. Ng6 {[%clk 0:00:14]}  Rc7 {[%clk 0:00:10]} 43. Bg2 {[%clk 0:00:13]}  Nd7 {[%clk 0:00:08]} 44. f4 {[%clk 0:00:12]}  Rf7 {[%clk 0:00:06]} 45. Rde1 {[%clk 0:00:13]}  Nc5 {[%clk 0:00:06]} 46. Ne5 {[%clk 0:00:12]}  Rg7 {[%clk 0:00:06]} 47. Ng6 {[%clk 0:00:12]}  Rgf7 {[%clk 0:00:06]} 48. Bf3 {[%clk 0:00:11]}  Rg7 {[%clk 0:00:06]} 49. g4 {[%clk 0:00:11]}  fxg4 {[%clk 0:00:06]} 50. Bxg4 {[%clk 0:00:12]}  Rxg6 {[%clk 0:00:02]} 51. hxg6 {[%clk 0:00:12]}  Rg7 {[%clk 0:00:02]} 52. Rxe6+ {[%clk 0:00:12]}  Nxe6 {[%clk 0:00:01]} 53. Rxe6+ {[%clk 0:00:13]}  Kc5 {[%clk 0:00:02]} 54. f5 {[%clk 0:00:12]}  d4 {[%clk 0:00:03]} 55. Re5+ {[%clk 0:00:13]}  Kd6 {[%clk 0:00:03]} 56. cxd4 {[%clk 0:00:13]}  Rc7 {[%clk 0:00:01]} 57. f6 {[%clk 0:00:13]}  Bd3 {[%clk 0:00:01]} 58. f7 {[%clk 0:00:12]}  Rc8 {[%clk 0:00:01]} 59. g7 {[%clk 0:00:12]} 1-0


[Site "https://www.chess.com"]